bitfinex-derivatives/quotes_BTCF0:USTF0_20240817
["timestamp","ask_amount","ask_price","bid_price","bid_amount"]
[1723920311531,0.063177,59348.0,59347.0,0.06343076]
[1723920311828,0.156377,59348.0,59347.0,0.06343076]
[1723920314330,0.159377,59348.0,59347.0,0.00025276]
[1723920314529,0.299377,59348.0,59347.0,0.00025276]
[1723920314827,0.362554,59348.0,59347.0,0.00025276]
[1723920315228,0.359554,59348.0,59347.0,1e-08]
[1723920315428,0.363554,59348.0,59347.0,1e-08]
[1723920316435,0.37362187,59348.0,59347.0,1e-08]
[1723920317027,0.36962187,59348.0,59347.0,1e-08]
[1723920317236,0.37762187,59348.0,59347.0,1e-08]
[1723920317628,0.38162187,59348.0,59347.0,1e-08]
[1723920318930,0.74242187,59348.0,59347.0,1e-08]
[1723920321538,1.24790187,59348.0,59347.0,1e-08]
[1723920322433,1.64790187,59348.0,59347.0,1e-08]
[1723920323927,0.74242187,59348.0,59347.0,1e-08]
[1723920331034,0.5128,59348.0,59347.0,1e-08]
[1723920331232,0.012,59348.0,59347.0,0.06317801]
[1723920331425,0.012,59348.0,59347.0,0.11277801]
[1723920332540,0.012,59348.0,59347.0,0.20597801]
[1723920333631,0.23596,59353.0,59352.0,0.063173]
[1723920333935,0.42421976,59358.0,59352.0,0.454]
[1723920334135,0.42421976,59358.0,59357.0,0.063168]
[1723920335227,0.43421976,59358.0,59357.0,0.063168]
[1723920335632,0.42421976,59358.0,59357.0,0.063168]
[1723920335833,0.43821976,59358.0,59357.0,0.063168]
[1723920336557,0.45221976,59358.0,59357.0,0.063168]
[1723920336747,0.38905276,59358.0,59357.0,0.156368]
[1723920337543,0.38905276,59358.0,59357.0,0.063168]
[1723920339229,0.45221976,59358.0,59357.0,0.063168]
[1723920339434,0.09141976,59358.0,59357.0,0.063168]
[1723920339644,0.02825276,59358.0,59357.0,0.063168]
[1723920340738,0.02825276,59358.0,59357.0,0.156368]
[1723920341443,0.02825276,59358.0,59357.0,0.661768]
[1723920341741,0.3608,59362.0,59361.0,0.063163]
[1723920341946,0.3608,59362.0,59361.0,0.156363]
[1723920342950,0.028,59362.0,59361.0,0.156363]
[1723920345243,0.23621276,59367.0,59366.0,0.063158]
[1723920345643,0.00025276,59367.0,59366.0,0.063158]
[1723920345837,0.00025276,59367.0,59366.0,0.108258]
[1723920347347,0.00025276,59367.0,59366.0,0.110258]
[1723920347834,0.00025276,59367.0,59366.0,0.11946134]
[1723920348152,0.00025276,59367.0,59366.0,0.12046134]
[1723920348345,0.00025276,59367.0,59366.0,0.16556134]
[1723920348647,0.00025276,59367.0,59366.0,0.67088134]
[1723920350446,0.06315,59374.0,59373.0,0.063148]
[1723920351847,0.3618,59377.0,59376.0,0.063147]
[1723920352039,0.063146,59378.0,59377.0,0.063146]
[1723920352243,0.00025276,59379.0,59378.0,0.063145]
[1723920354451,0.00025276,59379.0,59378.0,0.065145]
[1723920358756,0.00025276,59379.0,59378.0,0.425945]
[1723920361453,0.00025276,59379.0,59378.0,0.065145]
[1723920369560,1e-08,59379.0,59378.0,0.065145]
[1723920369765,0.063137,59386.0,59385.0,0.063138]
[1723920369967,0.063137,59386.0,59385.0,0.156338]
[1723920371164,0.063137,59386.0,59385.0,0.157338]
[1723920372067,0.07320245,59386.0,59385.0,0.157338]
[1723920373558,0.07320245,59386.0,59385.0,0.518138]
[1723920373955,0.01006545,59386.0,59385.0,0.518138]
[1723920374166,0.063135,59388.0,59387.0,0.063135]
[1723920374367,0.063135,59388.0,59387.0,0.156335]
[1723920375772,0.063135,59388.0,59387.0,0.157335]
[1723920376173,0.07320135,59388.0,59387.0,0.157335]
[1723920376369,0.07320135,59388.0,59387.0,0.158335]
[1723920376574,0.22424807,59388.0,59387.0,0.158335]
[1723920376969,0.11442065,59388.0,59387.0,0.158335]
[1723920377175,0.07320135,59388.0,59387.0,0.158335]
[1723920378668,0.07320135,59388.0,59387.0,0.519135]
[1723920378873,0.07320135,59388.0,59387.0,0.565235]
[1723920379980,0.01006635,59388.0,59387.0,0.565235]
[1723920380176,0.063131,59391.0,59389.0,0.063133]
[1723920380479,0.063131,59391.0,59390.0,0.0932]
[1723920381066,0.063131,59391.0,59390.0,0.156332]
[1723920382781,0.063131,59391.0,59390.0,0.157332]
[1723920383172,0.063131,59391.0,59390.0,0.158332]
[1723920384976,0.203131,59391.0,59390.0,0.002]
[1723920385178,0.266262,59391.0,59390.0,0.002]
[1723920385477,0.063137,59386.0,59385.0,0.0932]
[1723920385778,0.063139,59384.0,59383.0,0.063139]
[1723920386377,0.063139,59384.0,59383.0,0.11354392]
[1723920387381,0.063139,59384.0,59383.0,0.063139]
[1723920387584,0.213139,59384.0,59383.0,0.063139]
[1723920388374,0.213139,59384.0,59383.0,0.064139]
[1723920389369,0.306339,59384.0,59383.0,0.001]
[1723920389573,0.306339,59384.0,59383.0,0.0003267]
[1723920389574,1.635478,59384.0,59383.0,0.0003267]
[1723920389976,1.64572064,59384.0,59383.0,0.0003267]
[1723920392286,0.74052064,59384.0,59383.0,0.0003267]
[1723920393783,1.10132064,59384.0,59383.0,0.0003267]
[1723920393984,1.00812064,59384.0,59383.0,0.0003267]
[1723920394981,0.94498164,59384.0,59383.0,0.0003267]
[1723920396598,0.58418164,59384.0,59383.0,0.0003267]
[1723920398183,1.48938164,59384.0,59383.0,0.0003267]
[1723920398380,1.85018164,59384.0,59383.0,0.0003267]
[1723920398687,1.91332064,59384.0,59383.0,0.0003267]
[1723920398886,1.19172064,59384.0,59383.0,0.0003267]
[1723920399081,1.48938164,59384.0,59383.0,0.0003267]
[1723920400294,1.55252064,59384.0,59383.0,0.0003267]
[1723920400995,1.65689229,59384.0,59383.0,0.0003267]
[1723920401192,1.70857531,59384.0,59383.0,0.0003267]
[1723920401498,1.85962203,59384.0,59383.0,0.0003267]
[1723920401688,1.85982203,59384.0,59383.0,0.0003267]
[1723920402199,1.76690636,59384.0,59383.0,7e-07]
[1723920402398,1.61585964,59384.0,59383.0,7e-07]
[1723920404302,1.97665964,59384.0,59383.0,7e-07]
[1723920405101,1.25505964,59384.0,59383.0,7e-07]
[1723920405396,1.97665964,59384.0,59383.0,7e-07]
[1723920409203,2.2206242,59384.0,59383.0,7e-07]
[1723920409605,2.06957748,59384.0,59383.0,7e-07]
[1723920409806,2.06957788,59384.0,59383.0,7e-07]
[1723920410106,2.2200444,59384.0,59383.0,7e-07]
[1723920410305,1.8198444,59384.0,59383.0,7e-07]
[1723920410602,1.28523474,59384.0,59383.0,7e-07]
[1723920410909,1.04935474,59384.0,59383.0,7e-07]
[1723920412909,0.68855474,59384.0,59383.0,7e-07]
[1723920413105,0.62541574,59384.0,59383.0,7e-07]
[1723920413311,0.62540892,59384.0,59383.0,7e-07]
[1723920414408,0.62540946,59384.0,59383.0,7e-07]
[1723920415309,0.26460946,59384.0,59383.0,7e-07]
[1723920416113,0.35780946,59384.0,59383.0,7e-07]
[1723920417404,0.31658164,59384.0,59383.0,7e-07]
[1723920422112,0.22338164,59384.0,59383.0,7e-07]
[1723920422308,0.31658164,59384.0,59383.0,7e-07]
[1723920424412,0.35780978,59384.0,59383.0,7e-07]
[1723920426810,0.35780919,59384.0,59383.0,7e-07]
[1723920427217,0.71860919,59384.0,59383.0,7e-07]
[1723920427413,0.77028512,59384.0,59383.0,7e-07]
[1723920428303,0.95466271,59384.0,59383.0,7e-07]
[1723920429215,0.77028512,59384.0,59383.0,7e-07]
[1723920430825,0.40948512,59384.0,59383.0,7e-07]
[1723920431010,0.35780919,59384.0,59383.0,7e-07]
[1723920431313,0.20147019,59384.0,59383.0,0.1563407]
[1723920431514,0.04122755,59384.0,59383.0,0.1563407]
[1723920431722,0.04122755,59384.0,59383.0,0.0932007]
[1723920431911,0.156339,59384.0,59383.0,7e-07]
[1723920432316,0.32391342,59384.0,59383.0,7e-07]
[1723920432513,0.156339,59384.0,59383.0,7e-07]
[1723920435516,0.156339,59384.0,59383.0,0.0631407]
[1723920435726,0.063139,59384.0,59383.0,0.0631407]
[1723920447320,0.063139,59384.0,59383.0,0.1563407]
[1723920447513,0.104363,59384.0,59383.0,0.1563407]
[1723920451631,0.041224,59384.0,59383.0,0.1563407]
[1723920452324,0.041224,59384.0,59383.0,0.0631407]
[1723920452631,0.22592082,59384.0,59383.0,0.1563407]
[1723920454523,0.07307793,59387.0,59386.0,0.063137]
[1723920454724,0.23307793,59387.0,59386.0,0.063137]
[1723920454923,0.223136,59387.0,59386.0,0.063137]
[1723920455323,0.063136,59387.0,59386.0,0.063137]
[1723920455828,0.063136,59387.0,59386.0,0.2078291]
[1723920455829,0.001,59387.0,59386.0,0.2078291]
[1723920456027,0.001,59387.0,59386.0,0.20783059]
[1723920456225,0.001,59387.0,59386.0,0.158337]
[1723920458341,0.001,59387.0,59386.0,0.22542981]
[1723920459330,0.063129,59393.0,59392.0,0.06313]
[1723920459531,0.3608,59394.0,59393.0,0.063129]
[1723920459732,0.3608,59394.0,59393.0,0.160529]
[1723920461141,0.423928,59394.0,59393.0,0.160529]
[1723920461642,0.423928,59394.0,59393.0,0.161529]
[1723920461845,0.063128,59394.0,59393.0,0.161529]
[1723920462340,0.063128,59394.0,59393.0,0.162529]
[1723920462341,0.156328,59394.0,59393.0,0.162529]
[1723920466838,0.063128,59394.0,59393.0,0.162529]
[1723920469448,0.10434442,59394.0,59393.0,0.162529]
[1723920471667,0.27434442,59394.0,59393.0,0.065129]
[1723920471850,0.27434442,59394.0,59393.0,0.002]
[1723920471851,0.72834442,59394.0,59393.0,0.002]
[1723920472154,0.79147242,59394.0,59393.0,0.002]
[1723920472652,0.79147242,59394.0,59393.0,0.001]
[1723920472653,1.81138241,59394.0,59393.0,0.001]
[1723920477350,2.17218241,59394.0,59393.0,0.001]
[1723920477654,2.079304,59394.0,59393.0,0.001]
[1723920479651,1.986104,59394.0,59393.0,0.001]
[1723920479951,2.079304,59394.0,59393.0,0.001]
[1723920481553,2.17461823,59394.0,59393.0,0.001]
[1723920482143,1.77461823,59394.0,59393.0,0.001]
[1723920482349,2.17461823,59394.0,59393.0,0.001]
[1723920483249,1.77461823,59394.0,59393.0,0.001]
[1723920483449,2.17461823,59394.0,59393.0,0.001]
[1723920483852,1.77461823,59394.0,59393.0,0.001]
[1723920484051,2.17461823,59394.0,59393.0,0.001]
[1723920484447,0.063136,59387.0,59380.0,0.05789288]
[1723920484656,0.13411096,59383.0,59380.0,0.05789288]
[1723920484856,0.09531423,59382.0,59380.0,0.05789288]
[1723920485059,0.09531423,59381.0,59380.0,0.06797254]
[1723920485353,0.24531423,59381.0,59380.0,0.42877254]
[1723920485755,0.30845623,59381.0,59380.0,0.06797254]
[1723920485955,0.39166905,59381.0,59380.0,0.46583375]
[1723920486151,0.39166905,59381.0,59380.0,0.42877254]
[1723920486561,0.39266905,59381.0,59380.0,0.42877254]
[1723920487460,0.39266905,59381.0,59380.0,0.06797254]
[1723920487661,0.39266905,59381.0,59380.0,0.42877254]
[1723920488960,0.39266905,59381.0,59380.0,0.46583381]
[1723920489359,0.39266905,59381.0,59380.0,0.10503381]
[1723920489661,0.39266905,59381.0,59380.0,0.10503429]
[1723920489864,0.39266905,59381.0,59380.0,0.09495463]
[1723920490156,0.39266905,59381.0,59380.0,0.05789288]
[1723920490364,0.39266905,59381.0,59380.0,0.09495513]
[1723920490860,0.39266905,59381.0,59380.0,0.18815513]
[1723920491158,0.39266905,59381.0,59380.0,0.15109288]
[1723920492655,0.34198549,59381.0,59380.0,0.15109288]
[1723920493256,0.24143535,59381.0,59380.0,0.15109288]
[1723920493950,0.34199658,59381.0,59380.0,0.15109288]
[1723920494155,0.24143551,59381.0,59380.0,0.15109288]
[1723920496453,0.34203974,59381.0,59380.0,0.15109288]
[1723920496656,0.24143551,59381.0,59380.0,0.15109288]
[1723920498368,0.24143551,59381.0,59380.0,0.51189288]
[1723920498764,0.09143551,59381.0,59380.0,0.51189288]
[1723920499464,0.25274018,59381.0,59380.0,0.15109288]
[1723920499768,0.3338167,59381.0,59380.0,0.36870326]
[1723920500158,0.3338167,59381.0,59380.0,0.43184526]
[1723920500357,0.3338167,59381.0,59380.0,0.07104526]
[1723920500864,0.26887656,59381.0,59380.0,0.07104526]
[1723920501064,0.26887656,59381.0,59380.0,0.43184526]
[1723920501569,0.14521852,59381.0,59380.0,0.43184526]
[1723920501765,0.064142,59381.0,59380.0,0.43184526]
[1723920502159,0.064142,59381.0,59380.0,0.07104526]
[1723920502353,0.12561168,59381.0,59380.0,0.07104526]
[1723920502559,0.12561168,59381.0,59380.0,0.43184526]
[1723920502959,0.12561168,59381.0,59380.0,0.07104526]
[1723920503168,0.12561168,59381.0,59380.0,0.43184526]
[1723920503466,0.12561168,59381.0,59380.0,0.07104526]
[1723920503668,0.12561168,59381.0,59380.0,0.43184526]
[1723920504155,0.12561168,59381.0,59380.0,0.07104526]
[1723920504156,0.26285848,59381.0,59380.0,0.07104526]
[1723920504359,0.1576103,59381.0,59380.0,0.43184526]
[1723920505066,0.064142,59381.0,59380.0,0.43184526]
[1723920506968,0.064142,59381.0,59380.0,0.07104526]
[1723920507370,0.001,59381.0,59380.0,0.43184526]
[1723920507561,0.00025228,59386.0,59385.0,0.126276]
[1723920507756,0.00025228,59386.0,59385.0,0.580276]
[1723920508861,0.00125228,59386.0,59385.0,0.581276]
[1723920509265,0.00125228,59386.0,59385.0,1.086436]
[1723920509473,0.00125228,59386.0,59385.0,1.486436]
[1723920510269,0.00125228,59386.0,59385.0,1.52349247]
[1723920510467,0.00125228,59386.0,59385.0,1.486436]
[1723920511264,0.00125228,59386.0,59385.0,1.52349247]
[1723920511671,0.00125228,59386.0,59385.0,1.486436]
[1723920512275,0.00125228,59386.0,59385.0,1.49638255]
[1723920513470,0.06340976,59386.0,59385.0,1.49638255]
[1723920513770,0.09069942,59386.0,59385.0,1.49638255]
[1723920515476,0.08816653,59386.0,59385.0,1.09638255]
[1723920516280,0.08816653,59386.0,59385.0,1.03324455]
[1723920517179,0.08816653,59386.0,59385.0,0.52808455]
[1723920517373,0.08816653,59386.0,59385.0,1.03324455]
[1723920517575,0.08816653,59386.0,59385.0,0.52808455]
[1723920519879,0.00125228,59386.0,59385.0,0.52808455]
[1723920520079,0.02854291,59386.0,59385.0,0.52808455]
[1723920520276,0.08786911,59386.0,59385.0,0.52808455]
[1723920520976,0.20526718,59386.0,59385.0,0.52808455]
[1723920522282,0.20526718,59386.0,59385.0,0.07408455]
[1723920522283,0.26840418,59386.0,59385.0,0.07408455]
[1723920522482,0.49866218,59386.0,59380.0,0.02212944]
[1723920522671,0.2542099,59385.0,59380.0,0.02212944]
[1723920522877,0.06314,59383.0,59382.0,0.06314]
[1723920523179,0.3173499,59383.0,59382.0,0.06314]
[1723920524584,0.3173499,59383.0,59368.0,0.00025254]
[1723920524585,1.28672947,59383.0,59368.0,0.00025254]
[1723920524777,1.28672947,59383.0,59353.0,0.3608]
[1723920524778,0.517155,59369.0,59353.0,0.3608]
[1723920524976,0.063171,59354.0,59353.0,0.3608]
[1723920525281,0.3173809,59354.0,59353.0,0.3608]
[1723920526287,0.063172,59353.0,59352.0,0.00013644]
[1723920526472,0.3173819,59353.0,59352.0,0.00013644]
[1723920527182,0.4105819,59353.0,59352.0,0.00013644]
[1723920527486,0.50242434,59353.0,59352.0,0.00013644]
[1723920527680,0.50242434,59353.0,59352.0,0.00513644]
[1723920528284,0.50242434,59353.0,59352.0,0.00613644]
[1723920528475,0.31897651,59353.0,59352.0,0.00613644]
[1723920528673,0.30485179,59353.0,59352.0,0.00613644]
[1723920529476,0.063172,59353.0,59352.0,0.09933644]
[1723920530285,0.063172,59353.0,59352.0,0.00613644]
[1723920530474,0.11310405,59353.0,59352.0,0.00613644]
[1723920530670,0.063172,59353.0,59352.0,0.00613644]
[1723920531479,0.11308708,59353.0,59352.0,0.00613644]
[1723920532385,0.063172,59353.0,59352.0,0.00613644]
[1723920533084,0.156372,59353.0,59352.0,0.00613644]
[1723920537275,0.063172,59353.0,59352.0,0.00613644]
[1723920537478,0.156372,59353.0,59352.0,0.00613644]
[1723920543392,0.379544,59353.0,59352.0,0.00613644]
[1723920543592,0.316372,59353.0,59352.0,0.00613644]
[1723920543793,0.223172,59353.0,59352.0,0.00613644]
[1723920543987,0.316372,59353.0,59352.0,0.00613644]
[1723920544392,0.36628708,59353.0,59352.0,0.00613644]
[1723920544904,0.37630235,59353.0,59352.0,0.00613644]
[1723920545607,0.32638727,59353.0,59352.0,0.00613644]
[1723920546098,0.3763233,59353.0,59352.0,0.00613644]
[1723920546296,0.063172,59353.0,59352.0,0.00613644]
[1723920547513,0.063172,59353.0,59352.0,0.05423644]
[1723920548514,0.12976992,59353.0,59352.0,0.05423644]
[1723920549417,0.063172,59353.0,59352.0,0.05423644]
[1723920549806,0.156372,59353.0,59352.0,0.05423644]
[1723920552419,0.2396194,59353.0,59352.0,0.05423644]
[1723920553507,0.18367993,59353.0,59352.0,0.05423644]
[1723920554317,0.18367993,59353.0,59352.0,0.11740944]
[1723920558722,0.02730793,59353.0,59352.0,0.11740944]
[1723920558916,0.1205078,59355.0,59354.0,0.063171]
[1723920559229,0.17279689,59355.0,59354.0,0.063171]
[1723920560322,0.17379689,59355.0,59354.0,0.063171]
[1723920560723,0.17379689,59355.0,59354.0,0.066171]
[1723920563217,0.14657537,59355.0,59354.0,0.066171]
[1723920563425,0.17388261,59355.0,59354.0,0.066171]
[1723920563929,0.17388261,59355.0,59354.0,0.07638642]
[1723920565116,0.23705261,59355.0,59354.0,0.07638642]
[1723920565315,0.23705261,59355.0,59354.0,0.066171]
[1723920567132,0.40705261,59355.0,59354.0,0.003]
[1723920567833,0.23666564,59355.0,59354.0,0.003]
[1723920568531,0.23701627,59355.0,59354.0,0.003]
[1723920570219,0.23701627,59355.0,59354.0,0.04008139]
[1723920571117,0.23701627,59355.0,59354.0,0.003]
[1723920571628,0.23701627,59355.0,59354.0,0.066171]
[1723920571826,0.23701627,59355.0,59354.0,0.10325221]
[1723920572336,0.23705176,59355.0,59354.0,0.10325221]
[1723920576538,0.23705176,59355.0,59354.0,0.10325162]
[1723920577036,0.23705711,59355.0,59354.0,0.10325162]
[1723920580444,0.23705711,59355.0,59354.0,0.066171]
[1723920580733,0.23705711,59355.0,59354.0,0.10325162]
[1723920580930,0.14385711,59355.0,59354.0,0.10325162]
[1723920581234,0.23705711,59355.0,59354.0,0.10325162]
[1723920581429,0.18467744,59355.0,59354.0,0.10325162]
[1723920581631,0.23706376,59355.0,59354.0,0.10325162]
[1723920583739,0.08069376,59355.0,59354.0,0.19645162]
[1723920584627,0.11654637,59362.0,59354.0,0.19645162]
[1723920584628,0.063151,59373.0,59361.0,0.063163]
[1723920584838,0.063153,59371.0,59369.0,0.063154]
[1723920585055,0.08092104,59370.0,59369.0,0.063154]
[1723920585338,0.02730244,59370.0,59369.0,0.10022514]
[1723920585847,0.156353,59371.0,59370.0,0.063154]
[1723920586139,0.18365347,59371.0,59370.0,0.063154]
[1723920587229,0.28415232,59371.0,59370.0,0.063154]
[1723920587434,0.28415049,59371.0,59370.0,0.063154]
[1723920587831,0.19095049,59371.0,59370.0,0.063154]
[1723920588244,0.19095049,59371.0,59370.0,0.064154]
[1723920588430,0.19095049,59371.0,59370.0,0.065154]
[1723920589239,0.09045347,59371.0,59370.0,0.065154]
[1723920590340,0.0904531,59371.0,59370.0,0.065154]
[1723920591250,0.25674783,59371.0,59370.0,0.065154]
[1723920591435,0.28404793,59371.0,59370.0,0.065154]
[1723920591636,0.1836531,59371.0,59370.0,0.065154]
[1723920592247,0.28403309,59371.0,59370.0,0.065154]
[1723920593532,0.1836531,59371.0,59370.0,0.065154]
[1723920594839,0.18365317,59371.0,59370.0,0.065154]
[1723920595349,0.28403316,59371.0,59370.0,0.065154]
[1723920595645,0.18365317,59371.0,59370.0,0.065154]
[1723920599342,0.18365327,59371.0,59370.0,0.065154]
[1723920602342,0.33365327,59371.0,59370.0,0.065154]
[1723920602749,0.24045327,59371.0,59370.0,0.065154]
[1723920606746,0.02730027,59371.0,59370.0,0.158354]
[1723920606947,0.02729963,59372.0,59370.0,1.063674]
[1723920607145,0.08365806,59371.0,59370.0,0.221508]
[1723920607359,0.3608,59374.0,59370.0,0.221508]
[1723920607360,0.08365806,59372.0,59371.0,0.126306]
[1723920607648,0.08365806,59373.0,59372.0,0.063152]
[1723920607851,0.08391034,59375.0,59374.0,0.06315]
[1723920608051,0.00025228,59375.0,59374.0,0.2195]
[1723920608257,0.00025228,59375.0,59374.0,1.16978]
[1723920608557,0.06717925,59375.0,59374.0,1.16978]
[1723920609553,0.06717925,59375.0,59374.0,1.17078]
[1723920609756,0.00025228,59375.0,59374.0,1.17078]
[1723920610146,0.06717925,59375.0,59374.0,1.17078]
[1723920610348,0.00025228,59375.0,59374.0,1.17178]
[1723920611245,0.06717925,59375.0,59374.0,1.17178]
[1723920611446,0.00025228,59375.0,59374.0,1.17178]
[1723920612055,0.00025228,59375.0,59374.0,1.18298839]
[1723920612448,0.06717925,59375.0,59374.0,1.18298839]
[1723920612649,0.027546,59375.0,59374.0,1.18298839]
[1723920613256,0.12792599,59375.0,59374.0,1.18298839]
[1723920614063,0.12792599,59375.0,59374.0,1.54378839]
[1723920614256,0.027546,59375.0,59374.0,1.54378839]
[1723920614650,0.10069321,59375.0,59374.0,1.54378839]
[1723920614857,0.12798693,59375.0,59374.0,1.54378839]
[1723920615160,0.12798634,59375.0,59374.0,1.14378839]
[1723920615357,0.12798343,59375.0,59374.0,1.14378839]
[1723920615755,0.12798343,59375.0,59374.0,1.54378839]
[1723920616153,0.12798343,59375.0,59374.0,1.14378839]
[1723920616955,0.12798343,59375.0,59374.0,1.54378839]
[1723920617358,0.10040563,59377.0,59375.0,0.50528]
[1723920617658,0.10040563,59378.0,59376.0,0.156347]
[1723920617858,0.10040563,59378.0,59377.0,0.219492]
[1723920618262,0.10040563,59378.0,59377.0,0.661586]
[1723920618452,0.10040563,59379.0,59378.0,0.063145]
[1723920618652,0.18362722,59388.0,59384.0,0.063138]
[1723920618854,0.0932,59385.0,59384.0,0.063138]
[1723920619059,0.16680297,59385.0,59384.0,0.063138]
[1723920619751,0.12049265,59385.0,59384.0,0.063138]
[1723920620351,0.12049341,59385.0,59384.0,0.063138]
[1723920620963,0.12049341,59385.0,59384.0,0.064138]
[1723920627255,0.28049341,59385.0,59384.0,0.07442917]
[1723920627657,0.47657106,59385.0,59384.0,0.05813999]
[1723920627857,0.54070856,59385.0,59384.0,0.05813999]
[1723920628871,0.53991865,59385.0,59384.0,0.05813999]
[1723920631574,0.39007332,59385.0,59384.0,0.05813999]
[1723920631869,0.47707854,59385.0,59384.0,0.05813999]
[1723920632076,0.54084274,59385.0,59384.0,0.05813999]
[1723920632462,0.39007332,59385.0,59384.0,0.05813999]
[1723920633869,0.13687332,59385.0,59384.0,0.15133999]
[1723920634069,0.22395705,59385.0,59384.0,0.15133999]
[1723920634270,0.07310912,59385.0,59384.0,0.15133999]
[1723920634673,0.10059673,59385.0,59384.0,0.16763017]
[1723920634973,0.12788995,59385.0,59384.0,0.16763017]
[1723920635359,0.3608,59390.0,59384.0,0.10449117]
[1723920635566,0.07343987,59389.0,59388.0,0.156335]
[1723920636075,0.02728967,59389.0,59388.0,0.156335]
[1723920636278,0.08388007,59392.0,59390.0,0.063132]
[1723920636578,0.08388007,59392.0,59391.0,0.517131]
[1723920636872,0.08388007,59393.0,59392.0,0.06313]
[1723920637076,0.10064406,59397.0,59396.0,0.063126]
[1723920637265,0.10064406,59397.0,59396.0,0.156326]
[1723920637468,0.10063552,59397.0,59396.0,0.156326]
[1723920638370,0.10063552,59397.0,59396.0,0.157326]
[1723920638567,0.12792204,59397.0,59396.0,0.157326]
[1723920639172,0.02728652,59397.0,59396.0,0.157326]
[1723920639866,0.02728652,59397.0,59396.0,0.065126]
[1723920640270,0.12792204,59398.0,59396.0,0.065126]
[1723920640481,0.02728652,59397.0,59396.0,0.065126]
[1723920640870,0.02728652,59398.0,59396.0,0.065126]
[1723920641073,0.12048652,59397.0,59396.0,0.065126]
[1723920642075,0.22112204,59397.0,59396.0,0.065126]
[1723920642876,0.22458901,59397.0,59396.0,0.04479057]
[1723920643482,0.31422189,59397.0,59396.0,0.04479057]
[1723920643979,0.07021664,59397.0,59396.0,0.04479057]
[1723920645069,0.22102189,59397.0,59396.0,0.04479057]
[1723920645979,0.23671145,59397.0,59396.0,0.04479057]
[1723920646178,0.07021664,59397.0,59396.0,0.002]
[1723920647172,0.07021664,59397.0,59396.0,0.065126]
[1723920648478,0.07021664,59397.0,59396.0,0.112826]
[1723920649776,0.02728652,59397.0,59396.0,0.206026]
[1723920650381,0.12779823,59397.0,59396.0,0.206026]
[1723920650880,0.19092323,59397.0,59396.0,0.206026]
[1723920651980,0.19092414,59397.0,59396.0,0.206026]
[1723920652485,0.09041243,59397.0,59396.0,0.206026]
[1723920652777,0.19093184,59397.0,59396.0,0.206026]
[1723920653484,0.19093775,59397.0,59396.0,0.206026]
[1723920656289,0.18361243,59397.0,59396.0,0.065126]
[1723920656588,0.37545883,59397.0,59396.0,0.065126]
[1723920657276,0.33361402,59397.0,59396.0,0.065126]
[1723920657479,0.37548439,59397.0,59396.0,0.065126]
[1723920658483,0.33361402,59397.0,59396.0,0.065126]
[1723920658878,0.24041402,59397.0,59396.0,0.065126]
[1723920659584,0.28245255,59397.0,59396.0,0.065126]
[1723920660084,0.24041402,59397.0,59396.0,0.065126]
[1723920660486,0.28255653,59397.0,59396.0,0.065126]
[1723920660683,0.28255519,59397.0,59396.0,0.065126]
[1723920660982,0.28256196,59397.0,59396.0,0.065126]
[1723920661290,0.24041282,59397.0,59396.0,0.065126]
[1723920661487,0.28256934,59397.0,59396.0,0.065126]
[1723920662684,0.24041282,59397.0,59396.0,0.158326]
[1723920663082,0.24041282,59397.0,59396.0,0.203326]
[1723920663885,0.34110307,59397.0,59396.0,0.203326]
[1723920664189,0.34110243,59397.0,59396.0,0.203326]
[1723920664389,0.24041218,59397.0,59396.0,0.203326]
[1723920664787,0.28282504,59397.0,59396.0,0.203326]
[1723920664982,0.34357255,59397.0,59396.0,0.203326]
[1723920667474,0.49434012,59397.0,59396.0,0.203326]
[1723920667678,0.34357255,59397.0,59396.0,0.203326]
[1723920669090,0.13044755,59397.0,59396.0,0.203326]
[1723920669279,0.06970004,59397.0,59396.0,0.203326]
[1723920670792,0.06970004,59397.0,59396.0,0.110126]
[1723920671092,0.06970004,59397.0,59396.0,0.1382]
[1723920671688,0.06970004,59397.0,59396.0,0.201326]
[1723920671894,0.237667,59397.0,59396.0,0.201326]
[1723920672782,0.19525414,59397.0,59396.0,0.201326]
[1723920672982,0.36176,59401.0,59396.0,0.1382]
[1723920673193,0.06842995,59400.0,59399.0,0.063123]
[1723920674293,0.06842995,59400.0,59399.0,0.064123]
[1723920675989,0.06942995,59400.0,59399.0,0.065123]
[1723920676590,0.06942995,59400.0,59399.0,0.158323]
[1723920677485,0.06977268,59400.0,59399.0,0.21559945]
[1723920679291,0.13289468,59400.0,59399.0,0.21559945]
[1723920679888,0.30083874,59400.0,59399.0,0.21559945]
[1723920681797,0.13289468,59400.0,59399.0,0.21559945]
[1723920682184,0.30083874,59400.0,59399.0,0.21559945]
[1723920682986,0.19271406,59400.0,59399.0,0.19403951]
[1723920683191,0.13289468,59400.0,59399.0,0.19403951]
[1723920684502,0.13289468,59400.0,59399.0,0.23109069]
[1723920685100,0.19271406,59400.0,59399.0,0.19403951]
[1723920687093,0.19271406,59400.0,59399.0,0.119844]
[1723920687901,0.13289468,59400.0,59399.0,0.119844]
[1723920688192,0.13289468,59400.0,59399.0,0.182967]
[1723920688902,0.13044321,59400.0,59399.0,0.182967]
[1723920691203,0.13044504,59400.0,59399.0,0.182967]
[1723920695699,0.13045401,59400.0,59399.0,0.182967]
[1723920697904,0.13045401,59400.0,59399.0,0.0472]
[1723920698102,0.063126,59396.0,59395.0,0.4061]
[1723920698413,0.156326,59396.0,59395.0,0.0823528]
[1723920698712,0.156326,59396.0,59395.0,0.0453]
[1723920698713,0.22236474,59396.0,59395.0,0.0453]
[1723920699500,0.22236474,59396.0,59378.0,0.05037384]
[1723920699501,0.063137,59386.0,59378.0,0.05037384]
[1723920699802,1.00711274,59386.0,59377.0,0.00979638]
[1723920700008,1.13472859,59386.0,59377.0,0.00979638]
[1723920700211,1.13472859,59386.0,59376.0,0.063147]
[1723920700212,0.0932,59379.0,59376.0,0.063147]
[1723920700508,0.0932,59379.0,59375.0,0.0964]
[1723920700509,0.063146,59377.0,59375.0,0.0964]
[1723920700706,0.02728569,59376.0,59375.0,0.0964]
[1723920701101,0.02728569,59376.0,59375.0,0.10643309]
[1723920701506,0.08383633,59376.0,59375.0,0.10643309]
[1723920702407,0.063146,59377.0,59375.0,0.10643309]
[1723920702813,0.02729615,59376.0,59375.0,0.10643309]
[1723920703007,0.06342052,59376.0,59375.0,0.10643309]
[1723920703516,0.06342052,59376.0,59375.0,0.11043309]